[Event "FIDE WCCC U10 2018"]
[Site "Santiago de Compostela"]
[Date "2018.11.14"]
[Round "10"]
[White "Kadam Om Manish"]
[Black "Volkov, Maksim"]
[Result "0-1"]
[ECO "C07"]
[WhiteElo "2025"]
[BlackElo "1971"]
[Annotator "NA RC"]
[PlyCount "58"]
[EventDate "2018.11.04"]
[EventType "swiss"]
[EventCountry "ESP"]
[SourceTitle "playchess.com"]
[Source "ChessBase"]
[SourceQuality "1"]
[TimeControl "40/5400+30:1800+30"]

{[%evp 32,58,17,10,68,-171,8,-84,-116,-208,-209,-254,-218,-489,-326,32767,-411,-478,32767,-520,-554,-1039,-532,-518,-55,-95,-133,-128,-38]} 1. e4 {[%emt 0:00:00]} e6 {[%emt 0:00:00]} 2. d4 {[%emt 0:00:00]} d5 {[%emt 0:00:00]} 3. Nd2 {[%emt 0:00:00]} c5 {[%emt 0:00:00]} 4. exd5 {[%emt 0:00:12]} Qxd5 {[%emt 0:00:15]} 5. Ngf3 {[%emt 0:00:09]} cxd4 {[%emt 0:00:08]} 6. Bc4 {[%emt 0:00:08]} Qd6 {[%emt 0:00:09]} 7. O-O {[%emt 0:00:12]} Nf6 {[%emt 0:00:06]} 8. Nb3 {[%emt 0:00:20]} Nc6 {[%emt 0:00:11]} 9. Nbxd4 {[%emt 0:00:29]} Nxd4 {[%emt 0:00:07]} 10. Nxd4 {[%emt 0:00:08]} a6 {[%emt 0:00:07]} 11. Re1 {[%emt 0:02:04]} Qc7 {[%emt 0:00:21]} 12. Bf1 {[%emt 0:01:38] C07: French Tarrasch: 3...c5, 4 Ngf3 and 4 exd5 Qxd5} Bd7 {[%emt 0:00:43]} (12... Be7 13. Qf3 O-O 14. Bf4 Bd6 15. Bxd6 Qxd6 16. Rad1 Qc7 17. c4 Rb8 18. Qg3 Qxg3 19. hxg3 Bd7 {½-½ (61) Karjakin,S (2773)-Duda,J (2737) chess.com INT 2018}) 13. c3 {[%emt 0:01:44]} Bd6 {[%emt 0:01:08]} 14. h3 $146 {[%emt 0:01:42]} ({Predecessor:} 14. g3 O-O 15. Bg5 Nd5 16. Bg2 h6 17. Bd2 Ne7 18. Qh5 e5 19. Nc2 Bc6 20. Bxc6 Qxc6 {0-1 (44) Petrik,T (2498)-Piorun,K (2523) Czechia 2015}) 14... O-O-O {[%emt 0:01:37]} 15. Qc2 {[%emt 0:01:40]} Kb8 {[%emt 0:02:26]} 16. a4 {[%emt 0:01:44]} Rhg8 {[%emt 0:03:32]} 17. Be3 {[%emt 0:13:49]} g5 {[%emt 0:03:29] [#]} ({Lieber} 17... Nd5 $11) 18. b4 $2 {[%emt 0:12:32] [#]} (18. Nb5 $1 $16 {[%cal Rb5c7]} axb5 19. axb5) 18... Nd5 $2 {[%emt 0:06:41]} (18... g4 $1 $17 {[%cal Rg4h3]} 19. h4 g3) 19. Bd2 {[%emt 0:29:08] [#]} (19. b5 $1 $11 {bleibt in der Remisbreite.}) 19... g4 $1 {[%emt 0:05:15]} 20. h4 {[%emt 0:01:38] [#]} (20. hxg4 $17 {was worth a try.} Bh2+ 21. Kh1) 20... g3 $1 {[%emt 0:03:05]} 21. f3 {[%emt 0:00:09]} Rc8 {[%emt 0:08:51]} 22. Qb3 $2 {[%emt 0:19:00]} (22. Qd3 {might work better.}) 22... Qd8 {[%emt 0:05:13]} 23. Re4 {[%emt 0:00:48]} Nf6 {[%emt 0:04:36]} 24. Ree1 {[%emt 0:03:00]} e5 {[%emt 0:04:21]} 25. Nb5 $2 {[%emt 0:03:18]} (25. b5 exd4 26. bxa6) 25... axb5 {[%emt 0:06:25]} 26. axb5 {[%emt 0:00:07] [#]} (26. Qxf7 $142 bxa4 27. Rad1) 26... Bc7 {[%emt 0:03:08]} (26... Ng4 $142 $1 {[%mdl 512]} 27. Bd3 (27. fxg4 Qxh4) 27... Qxh4) 27. c4 {[%emt 0:03:10] [#]} Be6 $2 {[%emt 0:08:59]} ({Inferior is} 27... Bb6+ 28. c5 $11) ({Black should try} 27... Ng4 $1 $19 {[%mdl 512]} 28. Bg5 (28. fxg4 Qxh4) 28... Rxg5) 28. Be3 {[%emt 0:17:04]} Bb6 {[%emt 0:00:56]} 29. Qa3 {[%emt 0:00:32]} Bxe3+ $15 {[%emt 0:00:32]} (29... Nd7 $17 30. Bxb6 Qxb6+ 31. c5 {[#]} Nxc5 $1 {[%mdl 512]} 32. bxc5 Qxc5+ 33. Qxc5 Rxc5) 0-1

[Event "FIDE WCCC U10 2018"]
[Site "Santiago de Compostela"]
[Date "2018.11.14"]
[Round "10"]
[White "Xiao, Tong"]
[Black "Cherniaiev, Tykhon"]
[Result "0-1"]
[ECO "B45"]
[WhiteElo "2022"]
[BlackElo "1940"]
[Annotator "NA RC"]
[PlyCount "128"]
[EventDate "2018.11.04"]
[EventType "swiss"]
[EventCountry "ESP"]
[SourceTitle "playchess.com"]
[Source "ChessBase"]
[SourceQuality "1"]
[TimeControl "40/5400+30:1800+30"]

{[%evp 24,128,45,6,50,37,50,1,105,34,54,54,32767,40,35,8,18,11,41,32767,32767,32767,0,-64,-51,-29,-31,-112,-39,-213,-247,-265,-233,-295,-310,-312,-226,-428,-509,-896,32767,-1235,-1036,-1350,-395,-426,-495,32767,32767,32767,32767,32767,32767,32767,-435,32767,-427,-477,-492,-544,-446,-518,32767,32767,32767,32767,-650,-595,32767,32767,32767,32767,-581,-867,-875,-870,-643,-589,-552,-743,32767,32767,32767,32767,-445,-445,-559,32767,-439,32767,32767,32767,32767,-405,-511,-479,-523,32767,32767,32767,32767,32767,-29984,-29984,32767,32767,-29986]} 1. e4 c5 2. Nf3 e6 3. d4 cxd4 4. Nxd4 Nc6 5. Nc3 {[%emt 0:01:03]} Nf6 {[%emt 0:00:03]} 6. Ndb5 {[%emt 0:00:31]} Bb4 {[%emt 0:00:10]} 7. a3 {[%emt 0:00:28]} Bxc3+ {[%emt 0:00:09]} 8. Nxc3 {[%emt 0:00:05]} d5 {[%emt 0:00:06]} 9. exd5 {[%emt 0:00:19]} exd5 {[%emt 0:00:01]} 10. Bd3 {[%emt 0:00:14]} O-O {[%emt 0:00:09]} 11. O-O {[%emt 0:00:07]} d4 {[%emt 0:00:53]} 12. Ne2 {[%emt 0:01:59]} Re8 {LiveBook: 55 Games} 13. h3 {B45: Sicilian Four Knights} a6 (13... Re5 14. Bf4 Rd5 15. Ng3 Ne5 16. Bxe5 Rxe5 17. Qf3 Qb6 18. Qf4 Re8 19. Ne2 Rd8 20. Rfd1 Be6 21. Nxd4 Qxb2 22. Nxe6 fxe6 {1-0 (49) Andriasian,Z (2588)-Petrov,M (2535) Kalamaria 2010}) 14. Bf4 h6 15. Qd2 $146 ({Predecessor:} 15. Re1 Qd5 16. Ng3 Bd7 17. Qd2 g5 18. Bc7 b5 19. f4 Rac8 20. fxg5 hxg5 21. Nf5 {1-0 (41) Carlier,B (2360)-Winants,L (2415) Wijk aan Zee 1987}) 15... Be6 (15... Ne4 $11 {hält das Gleichgewicht.} 16. Bxe4 Rxe4) 16. Rfe1 Nd5 17. Bh2 Qd7 18. Be4 {[%emt 1:04:56]} Nde7 {[%emt 1:10:47]} 19. Ng3 {[%emt 0:03:09]} Rad8 {[%emt 0:03:52]} 20. Rad1 {[%emt 0:05:02]} Bd5 21. Nh5 Bxe4 {[%emt 0:05:48]} 22. Rxe4 {[%emt 0:02:30]} Ng6 {[%emt 0:01:20]} 23. Rde1 {[%emt 0:04:53]} (23. Rxe8+ $11 Qxe8 24. Re1) 23... Rxe4 {[%emt 0:01:01]} 24. Rxe4 {[%emt 0:00:08]} Qd5 {[%emt 0:01:55]} 25. Ng3 {[#]} (25. Qe2 $15) 25... Qa2 (25... f5 $1 $17 {[%cal Rf5e4]} 26. Re1 Nh4) 26. h4 $2 {[%emt 0:07:34]} (26. Qc1 $15) 26... Qxb2 {[%emt 0:06:32]} 27. h5 {[%emt 0:00:34]} Nf8 {[%emt 0:00:39]} 28. Qd1 {[%emt 0:01:22]} Qxa3 {[%emt 0:02:57]} 29. Nf5 {[%emt 0:01:03]} Rd5 {[%emt 0:01:50]} 30. Rf4 $2 {[%emt 0:01:46]} (30. g4) 30... d3 {[%emt 0:01:07]} 31. c4 {[%emt 0:00:05]} (31. cxd3 $142 Rc5 32. Nxh6+ gxh6 33. Rg4+ Kh7 34. Bf4 Rxh5 35. Be3) 31... Ra5 {[%emt 0:00:15]} 32. Ne3 {[%emt 0:01:15]} Qa1 {[%emt 0:00:19]} 33. Kf1 {[%emt 0:00:23]} Qxd1+ $2 {[%emt 0:00:22]} (33... Nb4 34. g4 Nc2 35. Qxa1 Rxa1+ 36. Kg2 Nxe3+ 37. fxe3 d2) 34. Nxd1 {[%emt 0:00:01]} Rxh5 {[%emt 0:00:10]} 35. Bg1 {[%emt 0:00:08]} Ne6 {[%emt 0:00:20]} 36. Re4 {[%emt 0:01:04]} Re5 37. f3 Rxe4 {[%emt 0:01:54]} 38. fxe4 {[%emt 0:00:19]} Kf8 {[%emt 0:00:57]} 39. Ke1 {[%emt 0:01:02]} Ke7 {[%emt 0:00:16]} 40. Kd2 {[%emt 0:00:00]} Ne5 {[%emt 0:00:00]} 41. c5 {[%emt 0:00:54]} Nd7 {[%emt 0:02:30]} 42. Kxd3 {[%emt 0:00:13]} Ndxc5+ {[%emt 0:00:12]} 43. Ke3 {[%emt 0:00:16]} b5 {[%emt 0:00:09]} 44. Nc3 {[%emt 0:00:04]} Kd7 {[%emt 0:02:00]} 45. Nd5 {[%emt 0:00:13]} Ng5 {[%emt 0:00:40]} 46. e5 {[%emt 0:00:07]} Ke6 {[%emt 0:00:19]} 47. Nc7+ {[%emt 0:01:53]} Kxe5 {[%emt 0:01:07]} 48. g4 {[%emt 0:00:06]} Kd6 {[%emt 0:00:36]} 49. Ne8+ {[%emt 0:00:06]} Ke7 {[%emt 0:01:58]} 50. Nxg7 {[%emt 0:00:05]} Kf6 {[%emt 0:00:23]} 51. Nh5+ {[%emt 0:01:48]} Kg6 {[%emt 0:00:23]} 52. Nf4+ {[%emt 0:00:09]} Kh7 {[%emt 0:00:23]} 53. Nd5 {[%emt 0:00:31]} Nge6 {[%emt 0:00:59]} 54. Bh2 {[%emt 0:00:12]} Kg6 {[%emt 0:00:31]} 55. Kf3 {[%emt 0:00:46]} Kg5 {[%emt 0:04:40]} 56. Bg1 {[%emt 0:01:05]} h5 {[%emt 0:04:10]} 57. Be3+ {[%emt 0:00:08]} Kg6 {[%emt 0:00:07]} 58. gxh5+ {[%emt 0:02:26]} Kxh5 {[%emt 0:00:11]} 59. Ne7 {[%emt 0:00:07]} b4 {[%emt 0:01:26]} 60. Nd5 {[%emt 0:00:30]} b3 {[%emt 0:00:11]} 61. Nc3 {[%emt 0:02:01]} f5 {[%emt 0:00:22]} 62. Kg3 {[%emt 0:00:12]} Ne4+ {[%emt 0:00:10]} 63. Nxe4 {[%emt 0:00:05]} fxe4 {[%emt 0:00:09]} 64. Bc1 {[%emt 0:00:01]} Nc5 {[%emt 0:00:15]} 0-1

[Event "FIDE WCCC U10 2018"]
[Site "Santiago de Compostela"]
[Date "2018.11.14"]
[Round "10"]
[White "Pingin, Artem"]
[Black "Mardov, Dimitar"]
[Result "1-0"]
[ECO "B42"]
[WhiteElo "1981"]
[BlackElo "1985"]
[Annotator "NA RC"]
[PlyCount "115"]
[EventDate "2018.11.04"]
[EventType "swiss"]
[EventCountry "ESP"]
[SourceTitle "playchess.com"]
[Source "ChessBase"]
[SourceQuality "1"]
[TimeControl "40/5400+30:1800+30"]

{[%evp 17,114,42,32767,32767,32767,38,47,33,34,47,97,77,88,61,75,54,54,73,139,108,32767,32767,119,85,32767,134,138,32767,32767,96,158,175,178,32767,139,92,135,101,129,72,67,77,32767,93,97,16,78,32767,143,32767,50,59,89,100,32767,54,93,0,179,90,96,32767,129,32767,32767,95,94,95,105,32767,32767,32767,32767,79,221,112,107,84,32767,79,267,256,252,321,314,307,301,329,1315,4624,12827,1452,5277,29969,32767,32767,32767,32767,12845]} 1. e4 {[%emt 0:00:00]} c5 {[%emt 0:00:00]} 2. Nf3 {[%emt 0:00:30]} e6 {[%emt 0:00:00]} 3. d4 {[%emt 0:00:30]} cxd4 {[%emt 0:00:00]} 4. Nxd4 {[%emt 0:00:17]} a6 {[%emt 0:00:14]} 5. Bd3 {[%emt 0:00:33]} Qc7 {[%emt 0:00:22]} 6. O-O {[%emt 0:00:58]} Nf6 {[%emt 0:00:32]} 7. Qe2 {[%emt 0:02:34]} d6 {[%emt 0:00:57]} 8. c4 {[%emt 0:00:50]} g6 {[%emt 0:00:15]} 9. Nc3 {[%emt 0:02:59]} Bg7 {[%emt 0:00:28]} 10. Nf3 {[%emt 0:01:38]} O-O {[%emt 0:01:42]} 11. Bg5 {[%emt 0:01:56] LiveBook: 3 Games B42: Sicilian: Kan Variation: 5 Bd3} (11. h3 Nc6 12. Be3 Nd7 13. Rac1 Nde5 14. Rfd1 Nxf3+ 15. Qxf3 Ne5 16. Qe2 b6 17. b3 Bb7 18. Bb1 Rfd8 {0-1 (61) Volokitin,A (2624)-Vallejo Pons,F (2711) Almaty 2016}) 11... Nc6 {[%emt 0:06:07]} 12. Rac1 {[%emt 0:02:27]} Nd7 {[%emt 0:03:11]} 13. Rfd1 {[%emt 0:08:42]} Nce5 $146 {[%emt 0:03:07]} ({Black should play Predecessor:} 13... Bxc3 $14 14. Rxc3 f6 15. Bh6 Re8 16. Bb1 Nc5 17. Qd2 Rd8 18. Rcc1 a5 {½-½ (54) Arakhamia Grant,K (2393)-Choladze,M (1989) Kutansi 2015}) 14. Nxe5 {[%emt 0:08:12]} Nxe5 {[%emt 0:04:18]} 15. b3 {[%emt 0:02:24]} h6 {[%emt 0:13:24]} 16. Bf4 {[%emt 0:00:56]} Rd8 {[%emt 0:02:50]} 17. Bb1 {[%emt 0:02:23]} Kh7 {[%emt 0:10:47]} ({Black should try} 17... Bd7 $14) 18. Be3 {[%emt 0:07:58]} Qe7 {[%emt 0:06:01]} 19. Na4 {[%emt 0:06:58]} Nc6 {[%emt 0:06:49]} 20. c5 {[%emt 0:07:43]} d5 {[%emt 0:09:23]} 21. Nb6 {[%emt 0:02:46]} Rb8 {[%emt 0:12:32]} 22. exd5 {[%emt 0:03:01]} exd5 {[%emt 0:00:49]} 23. Nxd5 {[%emt 0:02:35]} Qe6 {[%emt 0:05:41]} ({Black should play} 23... Qe5) 24. Nf4 {[%emt 0:01:26]} Rxd1+ {[%emt 0:02:02]} 25. Qxd1 {[%emt 0:01:32]} Qe8 {[%emt 0:02:20]} 26. Qd2 {[%emt 0:06:45]} Be6 {[%emt 0:02:00]} (26... Bg4 $14) 27. Nh5 {[%emt 0:05:33]} Bh8 {[%emt 0:03:14]} 28. Ng3 {[%emt 0:05:26]} (28. Bxh6 $142 Rd8 29. Qe3) 28... Rd8 {[%emt 0:00:34]} 29. Qe1 {[%emt 0:00:25]} Bd5 {[%emt 0:01:50]} 30. Rd1 {[%emt 0:02:45]} Qe6 {[%emt 0:01:32]} 31. f4 {[%emt 0:02:47]} (31. h4 $16) 31... Re8 {[%emt 0:01:29]} 32. Bf2 {[%emt 0:00:04]} Qg4 {[%emt 0:02:38]} ({Black should play} 32... Qxe1+ 33. Bxe1 f5) 33. Qxe8 {[%emt 0:01:07]} Qxd1+ {[%emt 0:00:23]} 34. Qe1 {[%emt 0:00:02]} Qg4 {[%emt 0:02:27]} 35. Qd2 {[%emt 0:00:17]} Qe6 {[%emt 0:02:02]} 36. Qe3 {[%emt 0:03:48]} (36. f5 $18 Qe5 37. h4) 36... Qf6 {[%emt 0:02:35]} 37. Qd2 {[%emt 0:01:25]} ({Günstiger ist} 37. f5 $16) 37... Qe6 {[%emt 0:03:51]} 38. h4 {[%emt 0:00:52]} Ne7 {[%emt 0:01:10]} 39. h5 {[%emt 0:00:46]} Bf6 {[%emt 0:01:16]} 40. hxg6+ {[%emt 0:00:00]} fxg6 {[%emt 0:00:00]} 41. Qe2 {[%emt 0:07:37]} Qxe2 {[%emt 0:04:33]} 42. Nxe2 {[%emt 0:00:10]} Nc6 {[%emt 0:01:05]} 43. Ng3 {[%emt 0:03:27]} Kg7 {[%emt 0:05:28]} 44. f5 {[%emt 0:05:25]} g5 {[%emt 0:02:33]} 45. Be4 {[%emt 0:03:09]} Ne7 {[%emt 0:02:36]} (45... Bxe4 $16 46. Nxe4 h5) 46. Bxd5 {[%emt 0:02:47]} Nxd5 {[%emt 0:00:08]} 47. Ne4 {[%emt 0:00:16]} Be5 {[%emt 0:00:50]} 48. Nd6 {[%emt 0:01:48]} Bxd6 $2 {[%emt 0:04:19]} (48... h5 $16) 49. cxd6 {[%emt 0:00:04]} Kf7 {[%emt 0:00:42] [#]} 50. Bd4 $1 {[%emt 0:01:24]} Ke8 {[%emt 0:05:21]} 51. Bg7 {[%emt 0:00:35]} h5 {[%emt 0:01:02]} 52. Kf2 {[%emt 0:06:37]} Kd7 $2 {[%emt 0:03:55]} (52... Nb4 53. g4 hxg4) 53. f6 {[%emt 0:00:41]} Nxf6 {[%emt 0:03:13]} 54. Bxf6 {[%emt 0:00:44]} Kxd6 {[%emt 0:00:08]} 55. Bxg5 {[%emt 0:00:04]} Ke5 {[%emt 0:00:10]} 56. Kg3 {[%emt 0:00:04]} Kf5 {[%emt 0:00:06]} 57. Kh4 {[%emt 0:00:04]} Kg6 $18 {[%emt 0:00:05]} 58. Bd2 {[%emt 0:00:09]} 1-0

[Event "FIDE WCCC U10 2018"]
[Site "Santiago de Compostela"]
[Date "2018.11.14"]
[Round "10"]
[White "Vagman, Roy"]
[Black "Ngo, Bach"]
[Result "1/2-1/2"]
[ECO "C41"]
[WhiteElo "1970"]
[BlackElo "1810"]
[Annotator "NA RC"]
[PlyCount "82"]
[EventDate "2018.11.04"]
[EventType "swiss"]
[EventCountry "ESP"]
[SourceTitle "playchess.com"]
[Source "ChessBase"]
[SourceQuality "1"]
[TimeControl "40/5400+30:1800+30"]

{[%evp 18,82,59,45,32767,10,0,0,32767,0,43,8,10,0,52,74,60,49,100,32767,62,32767,55,27,67,29,36,35,32767,32767,32767,32767,19,11,25,31,90,76,85,85,32767,70,81,74,89,32767,117,92,32767,114,133,104,120,32767,52,32767,150,32767,32767,32767,179,0,32767,32767,116,0,28]} 1. e4 {[%emt 0:00:03]} d6 {[%emt 0:00:01]} 2. d4 {[%emt 0:00:27]} Nf6 {[%emt 0:00:07]} 3. Nc3 {[%emt 0:00:16]} e5 {[%emt 0:00:06]} 4. Nf3 {[%emt 0:00:23]} Nbd7 {[%emt 0:00:17]} 5. Bc4 {[%emt 0:00:30]} Be7 {[%emt 0:00:07]} 6. O-O {[%emt 0:00:21]} O-O {[%emt 0:00:10]} 7. Re1 {[%emt 0:00:27]} c6 {[%emt 0:00:08]} 8. a4 {[%emt 0:00:32]} b6 {[%emt 0:00:09]} 9. Ba2 {[%emt 0:00:50]} a6 {[%emt 0:01:58]} 10. h3 {[%emt 0:01:00]} Bb7 {[%emt 0:00:28]} 11. Be3 {[%emt 0:06:40] C41: Philidor Defence} (11. dxe5 dxe5 12. Nh4 b5 13. Nf5 b4 14. Nb1 Ne8 15. Be3 Bc5 16. Nd2 g6 17. Nb3 Bxe3 18. Nxe3 Qc7 {½-½ (28) Kislinsky,A (2574)-Nepomniachtchi,I (2710) Legnica 2013}) 11... b5 {[%emt 0:01:37]} 12. axb5 {[%emt 0:01:55] LiveBook: 3 Games} axb5 {[%emt 0:00:37]} 13. b4 {[%emt 0:01:26]} Qc7 {[%emt 0:13:43]} 14. Qd2 {[%emt 0:09:34]} Nb6 {[%emt 0:05:33]} 15. Bg5 $146 {[%emt 0:17:00]} ({Predecessor:} 15. dxe5 dxe5 16. Bc5 Rad8 17. Qe3 Bxc5 18. bxc5 {1-0 (62) Fruebing,S (2347)-Glienke,M (2279) Germany 2016}) 15... Ne8 {[%emt 0:15:32]} 16. Bxe7 {[%emt 0:04:29]} Qxe7 {[%emt 0:00:42]} 17. Bb3 {[%emt 0:03:25]} Nc7 {[%emt 0:02:23]} ({Black should play} 17... Nf6 $14) 18. Qe3 {[%emt 0:05:12]} Nd7 {[%emt 0:03:50]} 19. Qd3 {[%emt 0:10:41]} Rfe8 {[%emt 0:36:34]} 20. Rad1 {[%emt 0:04:38]} Nf8 {[%emt 0:02:37]} 21. d5 {[%emt 0:03:18]} cxd5 {[%emt 0:00:27]} 22. Bxd5 {[%emt 0:02:30]} Bxd5 {[%emt 0:04:51]} 23. Nxd5 {[%emt 0:00:16]} Nxd5 {[%emt 0:00:08]} 24. Qxd5 {[%emt 0:00:12]} Rec8 {[%emt 0:00:44]} 25. Qxd6 {[%emt 0:02:22]} Qxd6 {[%emt 0:00:34]} 26. Rxd6 {[%emt 0:00:17]} Rxc2 {[%emt 0:00:29]} (26... f6 $1 $11 {keeps the balance.}) 27. Nxe5 {[%emt 0:00:39]} Raa2 {[%emt 0:00:36]} 28. Nd3 {[%emt 0:01:31]} Rd2 {[%emt 0:00:40]} 29. Rd5 {[%emt 0:01:27]} g6 {[%emt 0:02:58]} 30. Re3 {[%emt 0:08:37]} Ra1+ {[%emt 0:00:54]} 31. Kh2 {[%emt 0:01:34]} Ra3 {[%emt 0:01:35]} 32. Kg3 {[%emt 0:05:40]} Ne6 {[%emt 0:01:32]} 33. Nf4 {[%emt 0:02:32]} Raa2 {[%emt 0:06:06]} 34. Rxd2 {[%emt 0:01:48]} ({Of course not} 34. Rxb5 $6 Nxf4 35. Kxf4 Rxf2+ 36. Ke5 Rxg2 $14) 34... Rxd2 {[%emt 0:00:03]} 35. Nd5 {[%emt 0:03:23]} Nd4 {[%emt 0:00:26]} 36. Ra3 {[%emt 0:00:54]} Ne2+ $1 {[%emt 0:00:30]} 37. Kh2 {[%emt 0:00:20]} (37. Kf3 $16) 37... Nd4 {[%emt 0:00:28]} 38. Kg3 {[%emt 0:00:44]} Ne2+ {[%emt 0:00:22]} 39. Kh2 {[%emt 0:00:07]} Nd4 {[%emt 0:00:43]} 40. Kg1 {[%emt 0:00:00]} Rd1+ {[%emt 0:00:00]} 41. Kh2 {[%emt 0:00:30]} Rd2 $11 1/2-1/2

[Event "FIDE WCCC U10 2018"]
[Site "Santiago de Compostela"]
[Date "2018.11.14"]
[Round "10"]
[White "Amgalantengis, Enkh-Amgalan"]
[Black "Nemsadze, Daviti"]
[Result "1-0"]
[ECO "E83"]
[WhiteElo "1918"]
[BlackElo "1762"]
[Annotator "NA RC"]
[PlyCount "55"]
[EventDate "2018.11.04"]
[EventType "swiss"]
[EventCountry "ESP"]
[SourceTitle "playchess.com"]
[Source "ChessBase"]
[SourceQuality "1"]
[TimeControl "40/5400+30:1800+30"]

{[%evp 14,48,79,81,75,92,148,125,172,172,239,239,241,245,337,325,32767,355,414,32767,795,32767,32767,32767,32767,32767,758,728,1058,1327,1554,1720,2107,32767,29989,29990,29995]} 1. d4 {[%emt 0:00:00]} Nf6 {[%emt 0:00:00]} 2. c4 {[%emt 0:00:00]} g6 {[%emt 0:00:00]} 3. Nc3 {[%emt 0:00:00]} Bg7 {[%emt 0:00:12]} 4. e4 {[%emt 0:01:13]} d6 {[%emt 0:00:08]} 5. f3 {[%emt 0:01:00]} O-O {[%emt 0:00:15]} 6. Be3 {[%emt 0:00:06]} Nc6 {[%emt 0:00:14]} 7. Qd2 {[%emt 0:01:06]} e5 {[%emt 0:06:22] LiveBook: 16 Games} 8. d5 {[%emt 0:00:36]} Ne7 {[%emt 0:09:49]} 9. O-O-O {[%emt 0:01:49]} Nh5 {[%emt 0:01:34] [#] E83: Königsindisch (Sämisch-Angriff)} (9... Bd7 $142) 10. g4 $1 {[%emt 0:04:15]} Nf4 {[%emt 0:00:17] [#]} 11. Nge2 $1 {[%emt 0:09:40]} a6 $146 {[%emt 0:17:13]} ({Vorgänger:} 11... f5 {might work better.} 12. h3 a6 13. Nxf4 exf4 14. Bd4 Bxd4 15. Qxd4 fxg4 16. hxg4 Rf7 {1-0 (29) Verdnikov,V (2194)-Nelyubin,G (2058) Izhevsk 2010}) 12. Nxf4 {[%emt 0:11:55]} exf4 {[%emt 0:00:15]} 13. Bxf4 {[%emt 0:03:19]} Bh8 14. h4 {[%emt 0:12:18]} b5 {[%emt 0:07:58]} 15. h5 {[%emt 0:03:22]} ({Don't take} 15. cxb5 axb5 16. Bxb5 Bd7 $18) 15... bxc4 {[%emt 0:02:28]} 16. Qh2 {[%emt 0:08:41]} Bg7 {[%emt 0:12:24]} (16... g5 $142 17. Bxg5 Bxc3 18. bxc3 f6) 17. hxg6 {[%emt 0:01:33]} fxg6 {[%emt 0:00:06]} 18. Qxh7+ {[%emt 0:00:08]} Kf7 {[%emt 0:00:05]} 19. Bh6 {[%emt 0:00:46]} Rg8 {[%emt 0:00:23]} 20. Bxc4 {[%emt 0:04:00]} Kf8 {[%emt 0:04:16] [#]} 21. e5 $1 {[%emt 0:05:28]} Rb8 {[%emt 0:06:57]} 22. e6 {[%emt 0:02:49]} Rb4 {[%emt 0:02:14]} 23. Rd4 {[%emt 0:03:52]} g5 {[%emt 0:02:03]} 24. Bxg5 {[%emt 0:04:47]} Qe8 {[%emt 0:00:47]} 25. Rf4+ {[%emt 0:00:08]} Nf5 26. Qxf5+ {[%emt 0:00:17]} Bf6 {[%emt 0:00:15]} 27. Qxf6+ {[%emt 0:00:06]} Qf7 {[%emt 0:00:09]} 28. Qxf7# {[%emt 0:00:05]} 1-0